{"text_format":"3","workbook":"xlsx","n_sheets":2,"sheets":["התחלה","כלי תכנון של תקציב לחגים"],"not_rendered":{"defined_names":1},"read":"whole","date_system":"1900"}

{"sheet":"התחלה","index":0,"n_rows":4,"n_cols":2,"rows_kept":4}
[null,"אופן השימוש בתבנית זו"]
[null,"עקוב אחר ההוצאות שלך בעזרת כלי תכנון זה של תקציב לחגים."]
[null,"כדי להתחיל, הזן את התקציב שלך ואת ההוצאות בפועל בכל טבלת קטגוריה."]
[null,"תקציב לחגים, סכום ההוצאות בפועל וההפרשים מחושבים באופן אוטומטי עבורך."]

{"sheet":"כלי תכנון של תקציב לחגים","index":1,"n_rows":36,"n_cols":14,"rows_kept":36,"merged":[[0,2,5,7],[2,10,2,11],[8,2,8,5],[8,10,8,13],[18,2,18,5],[18,10,18,13],[29,2,29,5],[29,10,29,13]]}
[null,null,"כלי תכנון של תקציב לחגים"]
[]
[{"$nulls":10},"תקציב לחגים",null,null,{"$f":"SUM(מתנות[תקציב],אריזה[תקציב],(נסיעות[תקציב],(ארוחות[תקציב],(בידור[תקציב],שונות[תקציב]))))","v":{"v":750,"d":"₪ 750.00"}}]
[{"$nulls":10},"הוצאות בפועל",null,null,{"$f":"SUM((מתנות[בפועל],(אריזה[בפועל],(נסיעות[בפועל],(ארוחות[בפועל],(בידור[בפועל],(שונות[בפועל])))))))","v":{"v":820,"d":"₪ 820.00"}}]
[]
[{"$nulls":10},"הפרש (חורג מהתקציב/במסגרת התקציב)",null,null,{"$f":"SUM(N3-N4)","v":{"v":-70,"d":"₪ -70.00"}}]
[]
[]
[null,null,"מתנות",{"$nulls":7},"ארוחות חג"]
[null,null,"פריט","תקציב","בפועל","הפרש",{"$nulls":4},"פריט","תקציב","בפועל","הפרש"]
[null,null,"בני משפחה",{"v":500,"d":"₪ 500.00"},{"v":495,"d":"₪ 495.00"},{"$f":"מתנות[[#This Row],[תקציב]]-מתנות[[#This Row],[בפועל]]","v":{"v":5,"d":"₪ 5.00"}},{"$nulls":4},"מצרכים",null,null,{"$f":"ארוחות[[#This Row],[תקציב]]-ארוחות[[#This Row],[בפועל]]","v":{"v":0,"d":"₪ 0.00"}}]
[null,null,"חברים",{"v":250,"d":"₪ 250.00"},{"v":325,"d":"₪ 325.00"},{"$f":"מתנות[[#This Row],[תקציב]]-מתנות[[#This Row],[בפועל]]","v":{"v":-75,"d":"-₪ 75.00"}},{"$nulls":4},"משקאות חריפים",null,null,{"$f":"ארוחות[[#This Row],[תקציב]]-ארוחות[[#This Row],[בפועל]]","v":{"v":0,"d":"₪ 0.00"}}]
[null,null,"עמיתים",null,null,{"$f":"מתנות[[#This Row],[תקציב]]-מתנות[[#This Row],[בפועל]]","v":{"v":0,"d":"₪ 0.00"}},{"$nulls":4},"קישוטים",null,null,{"$f":"ארוחות[[#This Row],[תקציב]]-ארוחות[[#This Row],[בפועל]]","v":{"v":0,"d":"₪ 0.00"}}]
[null,null,"מורים, גננות, שמרטפים וכן הלאה",null,null,{"$f":"מתנות[[#This Row],[תקציב]]-מתנות[[#This Row],[בפועל]]","v":{"v":0,"d":"₪ 0.00"}},{"$nulls":4},"אחר (הקש Tab בעמודה האחרונה של שורה זו כדי להוסיף שורה)",null,null,{"$f":"ארוחות[[#This Row],[תקציב]]-ארוחות[[#This Row],[בפועל]]","v":{"v":0,"d":"₪ 0.00"}}]
[null,null,"תרומות לצדקה",null,null,{"$f":"מתנות[[#This Row],[תקציב]]-מתנות[[#This Row],[בפועל]]","v":{"v":0,"d":"₪ 0.00"}},{"$nulls":7},{"$f":"ארוחות[[#This Row],[תקציב]]-ארוחות[[#This Row],[בפועל]]","v":{"v":0,"d":"₪ 0.00"}}]
[null,null,"אחר (הקש Tab בעמודה האחרונה של שורה זו כדי להוסיף שורה)",null,null,{"$f":"מתנות[[#This Row],[תקציב]]-מתנות[[#This Row],[בפועל]]","v":{"v":0,"d":"₪ 0.00"}}]
[null,null,"סה\"כ",{"$f":"SUBTOTAL(109,מתנות[תקציב])","v":{"v":750,"d":"₪ 750.00"}},{"$f":"SUBTOTAL(109,מתנות[בפועל])","v":{"v":820,"d":"₪ 820.00"}},{"$f":"SUBTOTAL(109,מתנות[הפרש])","v":{"v":-70,"d":"-₪ 70.00"}},{"$nulls":4},"סה\"כ",{"$f":"SUBTOTAL(109,ארוחות[תקציב])","v":{"v":0,"d":"₪ 0.00"}},{"$f":"SUBTOTAL(109,ארוחות[בפועל])","v":{"v":0,"d":"₪ 0.00"}},{"$f":"SUBTOTAL(109,ארוחות[הפרש])","v":{"v":0,"d":"₪ 0.00"}}]
[]
[null,null,"אריזה",{"$nulls":7},"בידור"]
[null,null,"פריט","תקציב","בפועל","הפרש",{"$nulls":4},"פריט","תקציב","בפועל","הפרש"]
[null,null,"עטיפת מתנות",null,null,{"$f":"אריזה[[#This Row],[תקציב]]-אריזה[[#This Row],[בפועל]]","v":{"v":0,"d":"₪ 0.00"}},{"$nulls":4},"עובדים באירוע (ברמנים, חברת קייטרינג, חברת ניקיון וכן הלאה)",null,null,{"$f":"בידור[[#This Row],[תקציב]]-בידור[[#This Row],[בפועל]]","v":{"v":0,"d":"₪ 0.00"}}]
[null,null,"תגיות",null,null,{"$f":"אריזה[[#This Row],[תקציב]]-אריזה[[#This Row],[בפועל]]","v":{"v":0,"d":"₪ 0.00"}},{"$nulls":4},"קישוטים",null,null,{"$f":"בידור[[#This Row],[תקציב]]-בידור[[#This Row],[בפועל]]","v":{"v":0,"d":"₪ 0.00"}}]
[null,null,"ציוד (סרטים, נייר דבק וכן הלאה)",null,null,{"$f":"אריזה[[#This Row],[תקציב]]-אריזה[[#This Row],[בפועל]]","v":{"v":0,"d":"₪ 0.00"}},{"$nulls":4},"מזון ומשקאות",null,null,{"$f":"בידור[[#This Row],[תקציב]]-בידור[[#This Row],[בפועל]]","v":{"v":0,"d":"₪ 0.00"}}]
[null,null,"קופסאות",null,null,{"$f":"אריזה[[#This Row],[תקציב]]-אריזה[[#This Row],[בפועל]]","v":{"v":0,"d":"₪ 0.00"}},{"$nulls":4},"בגדים",null,null,{"$f":"בידור[[#This Row],[תקציב]]-בידור[[#This Row],[בפועל]]","v":{"v":0,"d":"₪ 0.00"}}]
[null,null,"דמי דואר",null,null,{"$f":"אריזה[[#This Row],[תקציב]]-אריזה[[#This Row],[בפועל]]","v":{"v":0,"d":"₪ 0.00"}},{"$nulls":4},"כרטיסים",null,null,{"$f":"בידור[[#This Row],[תקציב]]-בידור[[#This Row],[בפועל]]","v":{"v":0,"d":"₪ 0.00"}}]
[null,null,"אחר (הקש Tab בעמודה האחרונה של שורה זו כדי להוסיף שורה)",null,null,{"$f":"אריזה[[#This Row],[תקציב]]-אריזה[[#This Row],[בפועל]]","v":{"v":0,"d":"₪ 0.00"}},{"$nulls":4},"ארוחות מחוץ לבית",null,null,{"$f":"בידור[[#This Row],[תקציב]]-בידור[[#This Row],[בפועל]]","v":{"v":0,"d":"₪ 0.00"}}]
[{"$nulls":10},"אחר (הקש Tab בעמודה האחרונה של שורה זו כדי להוסיף שורה)",null,null,{"$f":"בידור[[#This Row],[תקציב]]-בידור[[#This Row],[בפועל]]","v":{"v":0,"d":"₪ 0.00"}}]
[null,null,"סה\"כ",{"$f":"SUBTOTAL(109,אריזה[תקציב])","v":{"v":0,"d":"₪ 0.00"}},{"$f":"SUBTOTAL(109,אריזה[בפועל])","v":{"v":0,"d":"₪ 0.00"}},{"$f":"SUBTOTAL(109,אריזה[הפרש])","v":{"v":0,"d":"₪ 0.00"}},{"$nulls":4},"סה\"כ",{"$f":"SUBTOTAL(109,בידור[תקציב])","v":{"v":0,"d":"₪ 0.00"}},{"$f":"SUBTOTAL(109,בידור[בפועל])","v":{"v":0,"d":"₪ 0.00"}},{"$f":"SUBTOTAL(109,בידור[הפרש])","v":{"v":0,"d":"₪ 0.00"}}]
[]
[null,null,"נסיעות",{"$nulls":7},"שונות"]
[null,null,"פריט","תקציב","בפועל","הפרש",{"$nulls":4},"פריט","תקציב","בפועל","הפרש"]
[null,null,"טיסות",null,null,{"$f":"נסיעות[[#This Row],[תקציב]]-נסיעות[[#This Row],[בפועל]]","v":{"v":0,"d":"₪ 0.00"}},{"$nulls":4},"צילומים לחג",null,null,{"$f":"שונות[[#This Row],[תקציב]]-שונות[[#This Row],[בפועל]]","v":{"v":0,"d":"₪ 0.00"}}]
[null,null,"לינה",null,null,{"$f":"נסיעות[[#This Row],[תקציב]]-נסיעות[[#This Row],[בפועל]]","v":{"v":0,"d":"₪ 0.00"}},{"$nulls":4},"דלק ",null,null,{"$f":"שונות[[#This Row],[תקציב]]-שונות[[#This Row],[בפועל]]","v":{"v":0,"d":"₪ 0.00"}}]
[null,null,"תחבורה",null,null,{"$f":"נסיעות[[#This Row],[תקציב]]-נסיעות[[#This Row],[בפועל]]","v":{"v":0,"d":"₪ 0.00"}},{"$nulls":4},"אחר (הקש Tab בעמודה האחרונה של שורה זו כדי להוסיף שורה)",null,null,{"$f":"שונות[[#This Row],[תקציב]]-שונות[[#This Row],[בפועל]]","v":{"v":0,"d":"₪ 0.00"}}]
[null,null,"אחר (הקש Tab בעמודה האחרונה של שורה זו כדי להוסיף שורה)",null,null,{"$f":"נסיעות[[#This Row],[תקציב]]-נסיעות[[#This Row],[בפועל]]","v":{"v":0,"d":"₪ 0.00"}}]
[null,null,"סה\"כ",{"$f":"SUBTOTAL(109,נסיעות[תקציב])","v":{"v":0,"d":"₪ 0.00"}},{"$f":"SUBTOTAL(109,נסיעות[בפועל])","v":{"v":0,"d":"₪ 0.00"}},{"$f":"SUBTOTAL(109,נסיעות[הפרש])","v":{"v":0,"d":"₪ 0.00"}},{"$nulls":4},"סה\"כ",{"$f":"SUBTOTAL(109,שונות[תקציב])","v":{"v":0,"d":"₪ 0.00"}},{"$f":"SUBTOTAL(109,שונות[בפועל])","v":{"v":0,"d":"₪ 0.00"}},{"$f":"SUBTOTAL(109,שונות[הפרש])","v":{"v":0,"d":"₪ 0.00"}}]